bitfinex-derivatives/quotes_ETHF0:USTF0_20210705
["timestamp","ask_amount","ask_price","bid_price","bid_amount"]
[1625476906442,5.56867,2278.8,2278.7,2.20527]
[1625476906541,6.56867,2278.8,2278.5,16.032885]
[1625476906788,6.56867,2278.8,2278.3,6.01358596]
[1625476906888,6.56867,2278.8,2277.9,1.25584516]
[1625476906998,40.2864,2278.7,2277.9,1.25584516]
[1625476907089,1.0,2278.6,2277.9,1.25584516]
[1625476907741,1.0,2278.6,2278.0,15.798415]
[1625476908443,2.20527,2278.3,2278.2,2.20527]
[1625476908544,3.20527,2278.3,2278.2,2.20527]
[1625476910416,5.41054,2278.3,2278.0,2.20527]
[1625476910522,5.41054,2278.3,2277.7,1.2557053]
[1625476911018,5.41054,2278.3,2277.1,1.25782426]
[1625476911019,58.83664,2278.3,2277.1,1.25782426]
[1625476911168,5.41054,2278.3,2277.1,1.25782426]
[1625476911268,5.41054,2278.3,2277.8,15.93307]
[1625476911569,5.41054,2278.3,2277.7,16.069313]
[1625476911667,5.41054,2278.3,2277.6,15.985895]
[1625476911817,5.41054,2278.3,2277.4,16.000996]
[1625476911920,5.41054,2278.3,2277.9,15.964452]
[1625476912268,5.41054,2278.3,2277.8,16.062809]
[1625476912370,5.41054,2278.3,2277.4,15.875295]
[1625476912471,2.20527,2277.9,2277.5,2.20527]
[1625476912871,2.20527,2277.9,2277.6,15.972941]
[1625476913821,3.20527,2278.3,2277.6,15.972941]
[1625476914425,3.20527,2278.3,2277.8,2.20527]
[1625476914778,3.20527,2278.3,2277.9,15.884532]
[1625476916431,2.20527,2278.0,2277.9,15.884532]
[1625476917031,3.20527,2278.0,2277.9,15.884532]
[1625476917232,2.20527,2278.0,2277.9,15.884532]
[1625476918034,3.20527,2278.0,2277.9,15.884532]
[1625476920592,2.20527,2278.3,2277.9,15.884532]
[1625476920690,2.20527,2278.3,2277.9,18.885132]
[1625476922195,1.28936741,2280.0,2277.9,18.885132]
[1625476922444,2.20527,2279.4,2279.2,2.20527]
[1625476922545,2.20527,2279.4,2279.2,5.59087]
[1625476922646,1.0,2279.3,2279.2,5.59087]
[1625476922955,1.0,2279.3,2279.2,21.560338]
[1625476925313,45.805,2279.3,2279.2,21.560338]
[1625476925815,45.805,2279.3,2279.2,19.355068]
[1625476925912,1.0,2279.3,2279.2,19.355068]
[1625476927065,1.0,2279.3,2279.2,3.3856]
[1625476927165,1.0,2279.3,2278.7,2.20527]
[1625476927918,1.0,2279.3,2278.8,15.919384]
[1625476928120,1.0,2279.3,2278.8,18.330384]
[1625476928518,2.20527,2278.9,2278.8,18.330384]
[1625476938597,3.20527,2278.9,2278.8,18.330384]
[1625476939201,3.20527,2278.9,2278.8,15.919384]
[1625476942613,2.20527,2278.9,2278.8,15.919384]
[1625476945670,5.55987,2278.9,2278.8,15.919384]
[1625476946829,7.76514,2278.9,2278.8,15.919384]
[1625476949084,7.76514,2278.9,2278.0,4.759]
[1625476949183,8.63594,2278.9,2278.0,4.759]
[1625476949736,39.2615,2278.4,2278.0,4.759]
[1625476949837,1.0,2278.3,2277.4,4.759]
[1625476950538,1.0,2278.3,2277.5,16.040089]
[1625476950789,2.20527,2277.9,2277.8,2.20527]
[1625476951094,2.20527,2277.9,2277.8,18.276372]
[1625476952543,55.953,2278.3,2277.8,18.276372]
[1625476952645,1.0,2278.3,2277.8,18.276372]
[1625476952844,2.20527,2277.9,2277.8,18.276372]
[1625476953848,4.49327,2277.9,2277.8,18.276372]
[1625476953953,4.49327,2277.9,2277.8,2.20527]
[1625476954600,5.49327,2277.9,2277.8,2.20527]
[1625476958215,57.31737,2277.9,2277.8,2.20527]
[1625476959616,5.49327,2277.9,2277.8,2.20527]
[1625476962075,2.20527,2277.9,2277.8,5.73137]
[1625476962552,2.20527,2277.9,2277.8,21.704665]
[1625476962634,2.20527,2277.9,2277.8,70.216865]
[1625476962734,2.29113132,2279.4,2277.8,70.216865]
[1625476962834,1.0,2279.4,2277.8,70.216865]
[1625476962936,2.20527,2278.6,2278.4,4.62617]
[1625476963038,1.0,2278.5,2278.4,4.62617]
[1625476963585,1.0,2278.5,2278.4,20.573164]
[1625476963685,1.0,2278.5,2278.4,18.367894]
[1625476964887,3.20527,2278.5,2278.4,18.367894]
[1625476965739,3.20527,2278.5,2277.8,5.73137]
[1625476966943,2.20527,2277.9,2277.8,7.93664]
[1625476967594,2.20527,2277.9,2277.8,48.75724]
[1625476967695,3.20527,2278.5,2277.8,48.75724]
[1625476967893,3.20527,2278.5,2277.8,64.81069]
[1625476968546,2.20527,2278.5,2277.8,64.81069]
[1625476968950,2.20527,2278.5,2278.4,4.64777]
[1625476969199,2.20527,2278.5,2278.4,20.704711]
[1625476970903,5.41054,2278.5,2278.4,20.704711]
[1625476972259,4.41054,2278.5,2278.4,20.704711]
[1625476973058,5.41054,2278.5,2278.4,20.704711]
[1625476973307,4.41054,2278.5,2278.4,20.704711]
[1625476973657,5.41054,2278.5,2278.4,20.704711]
[1625476979484,67.5834,2279.5,2278.4,18.499441]
[1625476979585,1.0,2279.4,2278.4,18.499441]
[1625476980938,4.41054,2278.5,2278.4,20.704711]
[1625476981036,5.41054,2278.5,2278.4,20.704711]
[1625476981287,5.41054,2278.5,2278.4,18.499441]
[1625476982591,4.41054,2278.5,2278.4,18.499441]
[1625476984547,5.41054,2278.5,2278.4,18.499441]
[1625476984845,1.0,2278.5,2278.4,18.499441]
[1625476985399,5.41054,2278.5,2278.4,18.499441]
[1625476991523,8.05414,2278.5,2278.4,18.499441]
[1625476991723,8.05414,2278.5,2278.4,2.4425]
[1625476991824,8.05414,2278.5,2278.3,2.20527]
[1625476993691,8.05414,2278.5,2278.0,1.26817715]
[1625476994244,8.05414,2278.5,2277.8,1.26881729]
[1625476994544,8.05414,2278.5,2277.6,1.26931591]
[1625476994894,47.3623,2277.9,2277.6,1.26931591]
[1625476994995,1.0,2277.8,2277.6,1.26931591]
[1625476995295,2.4143,2278.0,2277.6,1.26931591]
[1625476995400,3.20527,2277.9,2277.8,2.20527]
[1625476995498,2.20527,2277.9,2277.8,2.20527]
[1625476995901,2.20527,2277.9,2277.8,3.47289318]
[1625476995999,2.20527,2277.9,2277.8,19.44464718]
[1625476996605,2.20527,2277.9,2277.8,20.71166286]
[1625476997453,2.20527,2277.9,2277.8,22.91693286]
[1625476998607,3.20527,2277.9,2277.8,18.50639286]
[1625476998709,6.05857,2277.9,2277.8,1.77458432]
[1625476999107,6.05857,2277.9,2277.5,3.29565659]
[1625476999108,43.4801,2277.8,2277.6,1.26855398]
[1625476999208,1.0,2277.7,2277.6,1.26855398]
[1625476999406,3.20527,2277.7,2277.6,1.26855398]
[1625477001312,3.20527,2277.7,2277.6,1.77532966]
[1625477004013,3.20527,2277.7,2277.6,1.26851526]
[1625477004465,3.20527,2277.7,2277.6,1.77569973]
[1625477004920,3.20527,2277.7,2277.5,7.32876039]
[1625477005569,3.20527,2277.7,2277.6,1.26783187]
[1625477008581,3.20527,2277.7,2277.6,3.45413187]
[1625477009042,3.20527,2277.7,2277.6,2.1863]
[1625477009389,1.0,2277.7,2277.6,3.4544263]
[1625477009488,2.20527,2278.2,2277.6,3.4544263]
[1625477009589,3.20527,2278.2,2277.6,3.4544263]
[1625477009788,3.20527,2278.2,2277.6,19.5120383]
[1625477009890,3.20527,2278.2,2277.7,1.2677397]
[1625477009990,3.20527,2278.2,2277.8,42.8522]
[1625477010193,3.20527,2278.2,2277.8,44.11929383]
[1625477010290,3.20527,2278.2,2277.8,59.95191283]
[1625477010392,3.20527,2278.2,2277.8,17.09971283]
[1625477010942,3.20527,2278.2,2277.9,1.2668125]
[1625477011297,3.20527,2278.2,2278.0,15.99135]
[1625477011448,3.20527,2278.2,2278.1,2.20527]
[1625477011549,3.20527,2278.2,2278.1,5.05757]
[1625477012600,2.20527,2278.2,2278.1,5.05757]
[1625477013050,2.20527,2278.2,2278.1,20.912557]
[1625477013400,2.20527,2278.2,2278.1,22.17894142]
[1625477016605,2.20527,2278.5,2278.1,22.17894142]
[1625477017006,2.20527,2278.5,2278.2,1.2661076]
[1625477017156,3.20527,2278.5,2278.2,1.2661076]
[1625477017404,3.20527,2278.5,2278.3,16.049158]
[1625477017505,3.20527,2278.5,2278.4,2.20527]
[1625477017819,3.20527,2278.5,2278.4,18.133262]
[1625477018708,2.20527,2278.5,2278.4,18.133262]
[1625477019360,3.20527,2278.5,2278.4,18.133262]
[1625477019711,2.20527,2278.5,2278.4,18.133262]
[1625477020459,2.20527,2278.5,2278.4,19.39938515]
[1625477020861,2.20527,2278.5,2278.4,18.133262]
[1625477021318,2.20527,2278.5,2278.4,19.39938926]
[1625477023321,2.20527,2278.5,2278.4,64.73728926]
[1625477023685,2.20527,2278.5,2278.4,63.471162]
[1625477024031,2.20527,2278.5,2278.4,64.73469886]
[1625477024232,2.20527,2278.5,2278.4,19.39679886]
[1625477024942,2.20527,2278.5,2278.4,19.90190804]
[1625477025041,2.20527,2278.5,2278.4,58.31170804]
[1625477025692,2.20527,2278.5,2278.4,19.90190804]
[1625477026897,2.20527,2278.5,2278.4,19.39686637]
[1625477027448,2.20527,2278.5,2278.4,18.133262]
[1625477028001,2.20527,2278.5,2278.4,19.90312107]
[1625477028403,2.20527,2278.5,2278.4,19.39780878]
[1625477029856,2.20527,2278.5,2278.4,21.85160878]
[1625477030156,2.20527,2278.5,2278.4,22.35737895]
[1625477030708,2.20527,2278.5,2278.4,20.587062]
[1625477031712,2.20527,2278.5,2278.4,22.35721418]
[1625477032719,1.0,2278.9,2278.4,22.35721418]
[1625477032836,1.0,2279.3,2278.4,22.35721418]
[1625477033214,1.0,2279.3,2278.8,1.26376128]
[1625477033513,1.0,2279.3,2278.9,15.983932]
[1625477033664,1.0,2279.3,2279.2,49.94567]
[1625477033965,2.20527,2279.5,2279.2,49.94567]
[1625477034467,2.20527,2279.5,2279.2,4.39697]
[1625477034878,1.0,2279.4,2279.2,4.39697]
[1625477035673,1.0,2279.4,2279.2,2.20527]
[1625477036273,2.20527,2279.5,2279.2,2.20527]
[1625477036475,1.0,2279.4,2279.2,2.20527]
[1625477045715,2.20527,2279.5,2279.2,2.20527]
[1625477046414,3.20527,2279.5,2279.2,2.20527]
[1625477058105,3.20527,2279.5,2279.2,5.24177]
[1625477069694,2.20527,2279.5,2279.2,5.24177]
[1625477069804,1.0,2280.4,2279.2,5.24177]
[1625477069893,2.20527,2280.0,2279.4,2.20527]
[1625477069993,1.0,2279.9,2279.4,2.20527]
[1625477070196,1.0,2279.9,2279.5,66.364294]
[1625477070495,1.0,2279.9,2279.5,15.878194]
[1625477071144,1.0,2279.9,2279.5,53.289394]
[1625477071647,1.0,2279.9,2279.5,15.878194]
[1625477071848,1.0,2279.9,2279.8,2.20527]
[1625477081280,1.0,2279.9,2278.9,1.26106933]
[1625477081481,4.5611,2279.9,2278.9,1.26106933]
[1625477081683,4.5611,2279.9,2278.6,1.26164187]
[1625477081779,38.4713,2279.0,2278.6,1.26164187]
[1625477081880,43.0009,2279.0,2278.9,2.20527]
[1625477082681,4.5296,2279.0,2278.9,2.20527]
[1625477083035,1.0,2279.0,2278.9,2.20527]
[1625477085185,3.5611,2279.9,2278.9,2.20527]
[1625477085288,1.0,2279.8,2278.9,2.20527]
[1625477085635,44.6515,2279.7,2278.9,2.20527]
[1625477085735,1.0,2279.6,2278.9,2.20527]
[1625477085889,3.20527,2279.6,2279.5,2.20527]
[1625477087939,5.41054,2279.6,2279.5,2.20527]
[1625477096171,5.41054,2279.6,2278.9,2.20527]
[1625477096830,39.3761,2279.0,2278.9,2.20527]
[1625477096927,40.3761,2279.0,2278.9,2.20527]
[1625477097028,43.571,2279.0,2278.9,2.20527]
[1625477098031,47.98154,2279.0,2278.9,2.20527]
[1625477100534,8.60544,2279.0,2278.9,2.20527]
[1625477100637,5.41054,2279.0,2278.9,2.20527]
[1625477101787,4.41054,2279.0,2278.9,2.20527]
[1625477102037,5.41054,2279.0,2278.9,2.20527]
[1625477103093,4.41054,2279.0,2278.9,2.20527]
[1625477105853,5.41054,2279.0,2278.9,2.20527]
[1625477108209,51.39364,2279.0,2278.9,2.20527]
[1625477108709,5.41054,2279.0,2278.9,2.20527]
[1625477109158,1.0,2279.0,2278.9,2.20527]
[1625477110069,3.20527,2279.0,2278.9,2.20527]
[1625477110619,42.48577,2279.0,2278.9,2.20527]
[1625477110721,3.20527,2279.0,2278.9,2.20527]
[1625477114837,50.98507,2279.0,2278.9,2.20527]
[1625477116390,54.14937,2279.0,2278.9,2.20527]
[1625477118497,54.14937,2279.0,2278.5,2.20527]
[1625477118799,54.14937,2279.0,2278.0,1.26691715]
[1625477119097,54.14937,2279.0,2277.8,2.5338343]
[1625477119098,1.29631579,2278.9,2277.8,1.26754479]
[1625477119198,1.0,2278.8,2277.8,1.26754479]
[1625477119398,55.0128,2277.9,2277.8,1.26754479]
[1625477119498,58.1984,2277.9,2277.8,1.26754479]
[1625477119600,58.1984,2277.9,2277.7,1.26720689]
[1625477120100,60.40367,2277.9,2277.8,2.20527]
[1625477120302,60.40367,2277.9,2277.8,18.215851]
[1625477120854,5.39087,2277.9,2277.8,18.215851]
[1625477120956,2.20527,2277.9,2277.8,18.215851]
[1625477121455,1.0,2278.0,2277.8,18.215851]
[1625477124160,48.14917,2277.9,2277.8,18.215851]
[1625477124661,2.20527,2277.9,2277.8,18.215851]
[1625477125968,52.74397,2277.9,2277.8,18.215851]
[1625477126068,2.20527,2277.9,2277.8,18.215851]
[1625477126872,52.74617,2277.9,2277.8,18.215851]
[1625477127423,2.20527,2277.9,2277.8,18.215851]
[1625477128630,1.0,2278.1,2277.8,18.215851]
[1625477135947,49.2644,2277.9,2277.8,18.215851]
[1625477136048,50.2644,2277.9,2277.8,18.215851]
[1625477136200,52.46967,2277.9,2277.8,18.215851]
[1625477136552,3.20527,2277.9,2277.8,18.215851]
[1625477137651,55.77587,2277.9,2277.8,18.215851]
[1625477137802,3.20527,2277.9,2277.8,18.215851]
[1625477138101,1.0,2277.9,2277.8,18.215851]
[1625477141074,1.0,2278.1,2277.8,18.215851]
[1625477141576,52.5289,2277.9,2277.8,18.215851]
[1625477145236,54.735,2277.9,2277.8,18.215851]
[1625477145337,55.735,2277.9,2277.8,2.20527]
[1625477146241,57.94027,2277.9,2277.8,2.20527]
[1625477151199,5.41137,2277.9,2277.8,2.20527]
[1625477151299,3.20527,2277.9,2277.8,2.20527]
[1625477155108,2.20527,2277.9,2277.8,2.20527]
[1625477155707,1.0,2278.1,2277.6,8.0]
[1625477156258,2.20527,2278.0,2277.9,2.20527]
[1625477156365,3.20527,2278.0,2277.9,2.20527]
[1625477158286,5.41054,2278.0,2277.9,2.20527]
[1625477161397,5.38903639,2278.0,2277.9,2.20527]
[1625477162601,4.38903639,2278.0,2277.9,2.20527]
[1625477165011,42.37713639,2278.0,2277.9,2.20527]
[1625477165820,4.38903639,2278.0,2277.9,2.20527]
[1625477168732,4.38903639,2278.0,2277.9,18.21736]
[1625477169635,4.38903639,2278.0,2277.9,21.34316]
[1625477172803,62.5825,2278.6,2277.9,21.34316]
[1625477172905,1.0,2278.6,2277.9,21.34316]
[1625477173104,1.0,2278.8,2277.9,21.34316]
[1625477174415,2.20527,2278.7,2278.6,2.20527]
[1625477174506,3.20527,2278.7,2278.6,2.20527]
[1625477175760,2.20527,2278.7,2278.6,2.20527]
[1625477176160,1.0,2279.0,2278.6,18.005457]
[1625477176259,1.0,2279.0,2278.6,20.673457]
[1625477176362,1.0,2279.0,2278.9,2.20527]
[1625477181544,1.0,2279.0,2278.6,4.87327]
[1625477181643,1.0,2279.0,2278.6,2.20527]
[1625477182244,1.0,2279.0,2278.7,15.843901]
[1625477182446,2.20527,2278.8,2278.7,15.843901]
[1625477182544,3.20527,2278.8,2278.7,15.843901]
[1625477185196,2.20527,2278.8,2278.7,15.843901]
[1625477185599,2.20527,2278.8,2278.7,53.805701]
[1625477186100,2.20527,2278.8,2278.7,15.843901]
[1625477186302,1.0,2279.0,2278.7,15.843901]
[1625477186404,1.0,2279.0,2278.9,2.20527]
[1625477190878,1.0,2279.0,2278.9,40.77787]
[1625477190978,1.0,2279.0,2278.9,2.20527]
[1625477192090,1.0,2279.0,2278.9,42.06797]
[1625477193143,1.0,2279.0,2278.9,2.20527]
[1625477195450,1.0,2279.0,2278.9,45.13917]
[1625477196557,1.0,2279.0,2278.9,2.20527]
[1625477207651,1.0,2279.0,2278.6,2.20527]
[1625477207852,1.0,2279.0,2278.3,1.26200053]
[1625477208252,1.0,2279.0,2277.9,1.26523709]
[1625477208502,45.3658,2278.7,2277.9,1.26523709]
[1625477208601,2.20527,2278.4,2278.3,2.20527]
[1625477209201,3.20527,2278.4,2278.3,2.20527]
[1625477210458,2.20527,2278.4,2278.3,2.20527]
[1625477210805,2.20527,2278.4,2278.3,18.100455]
[1625477211206,1.0,2278.8,2278.3,18.100455]
[1625477211404,1.0,2278.8,2278.3,21.332855]
[1625477212609,1.0,2278.8,2278.7,2.20527]
[1625477222650,46.3885,2278.8,2278.7,2.20527]
[1625477222746,1.0,2278.8,2278.7,2.20527]
[1625477224048,1.0,2278.8,2278.3,2.20527]
[1625477224300,1.0,2278.8,2278.3,3.46999511]
[1625477224649,2.20527,2278.5,2278.3,5.67526511]
[1625477225001,3.20527,2278.5,2278.3,5.67526511]
[1625477225254,3.20527,2278.5,2278.3,4.41054]
[1625477236255,3.20527,2278.5,2278.4,49.485]
[1625477236857,3.20527,2278.5,2278.4,52.281]
[1625477237060,2.20527,2278.5,2278.4,52.281]
[1625477237457,2.20527,2278.5,2278.4,68.348509]
[1625477237558,2.20527,2278.9,2278.4,68.348509]
[1625477237660,1.0,2279.3,2278.4,70.12426511]
[1625477238161,1.0,2279.3,2278.7,1.26755803]
[1625477238263,1.0,2279.3,2279.0,50.2061]
[1625477238363,1.0,2279.3,2279.0,53.2427]
[1625477238762,2.20527,2279.3,2279.2,4.41054]
[1625477239363,3.20527,2279.6,2279.2,4.41054]
[1625477240771,3.20527,2279.6,2279.5,2.20527]
[1625477240871,3.20527,2279.6,2279.5,5.00127]
[1625477241525,2.20527,2279.6,2279.5,5.00127]
[1625477242572,2.20527,2279.8,2279.5,5.00127]
[1625477242824,2.20527,2279.8,2279.7,2.20527]
[1625477242923,3.20527,2279.8,2279.7,2.20527]
[1625477244424,2.20527,2279.8,2279.7,2.20527]
[1625477250070,2.20527,2280.2,2279.7,2.20527]
[1625477250268,2.20527,2280.2,2280.1,47.393]
[1625477250369,2.20527,2280.2,2280.1,50.2512]
[1625477250870,2.20527,2280.2,2280.1,52.45647]
[1625477254834,2.20527,2280.2,2280.1,5.06347]
[1625477257398,2.20527,2280.2,2280.1,49.04097]
[1625477259362,2.20527,2280.2,2280.1,5.06347]
[1625477260413,2.20527,2280.2,2280.1,52.85677]
[1625477260813,2.20527,2280.2,2280.1,5.06347]
[1625477261018,3.20527,2280.2,2280.1,5.06347]
[1625477261115,3.20527,2280.2,2280.1,2.20527]
[1625477262521,2.20527,2280.2,2280.1,2.20527]
[1625477263172,3.20527,2280.2,2280.1,2.20527]
[1625477268779,3.20527,2280.2,2280.1,44.19487]
[1625477269531,3.20527,2280.2,2280.1,2.20527]
[1625477271284,3.20527,2280.2,2280.1,43.03287]
[1625477271384,3.20527,2280.2,2280.1,2.20527]
[1625477273385,3.20527,2280.2,2280.1,43.72847]
[1625477273484,3.20527,2280.2,2280.1,2.20527]
[1625477274035,1.0,2280.2,2279.6,50.9097]
[1625477274135,1.0,2280.1,2279.6,50.9097]
[1625477274686,1.0,2280.1,2279.7,15.84595]
[1625477275037,3.20527,2280.1,2280.0,4.41054]
[1625477275138,3.20527,2280.1,2280.0,7.24184]
[1625477278812,3.20527,2280.1,2280.0,62.29784]
[1625477278915,3.20527,2280.1,2280.0,7.24184]
[1625477282830,3.20527,2280.1,2280.0,52.37554]
[1625477283331,3.20527,2280.1,2280.0,7.24184]
[1625477285736,3.20527,2280.1,2280.0,59.17434]
[1625477289901,1.0,2281.2,2280.0,59.17434]
[1625477290407,1.0,2281.2,2280.1,15.982456]
[1625477290507,1.0,2281.2,2281.1,50.0373]
[1625477290607,1.0,2281.2,2281.1,52.4485]
[1625477291208,1.0,2281.2,2281.1,54.65377]
[1625477291209,3.20527,2281.2,2281.1,54.65377]
[1625477292263,3.20527,2281.2,2281.1,4.61647]
[1625477293311,3.20527,2281.2,2281.1,2.20527]
[1625477298682,3.20527,2281.2,2281.1,46.73607]
[1625477298780,3.20527,2281.2,2281.1,2.20527]
[1625477300581,3.20527,2281.2,2281.1,43.19547]
[1625477300683,3.20527,2281.2,2281.1,2.20527]
[1625477304194,6.33877,2281.2,2281.1,2.20527]
[1625477304712,6.33877,2281.2,2281.1,52.55297]
[1625477304811,6.33877,2281.2,2281.1,2.20527]
[1625477306764,6.33877,2281.2,2280.6,2.20527]
[1625477306866,6.33877,2281.2,2280.8,51.1215]
[1625477307317,2.20527,2280.9,2280.8,51.1215]
[1625477307420,3.20527,2280.9,2280.6,2.20527]
[1625477307620,4.09127,2280.9,2280.6,2.20527]
[1625477307930,53.9897,2280.7,2280.6,2.20527]
[1625477308029,54.9897,2280.7,2280.6,2.20527]
[1625477308129,57.9043,2280.7,2280.6,2.20527]
[1625477308480,3.9146,2280.7,2280.6,2.20527]
[1625477309381,6.11987,2280.7,2280.6,2.20527]
[1625477312445,3.20527,2280.7,2280.6,2.20527]
[1625477316761,56.77817,2280.7,2280.6,2.20527]
[1625477317514,3.20527,2280.7,2280.6,2.20527]
[1625477325699,2.20527,2280.7,2280.6,2.20527]
[1625477326196,2.20527,2280.7,2280.6,50.73437]
[1625477326449,2.20527,2280.7,2280.6,2.20527]
[1625477332774,2.20527,2280.7,2280.6,52.45017]
[1625477333578,2.20527,2280.7,2280.6,2.20527]
[1625477334328,2.20527,2280.7,2280.6,18.029547]
[1625477335189,2.20527,2280.9,2280.6,18.029547]
[1625477335491,2.20527,2280.9,2280.8,2.20527]
[1625477335590,2.20527,2280.9,2280.8,4.47257]
[1625477335792,2.20527,2280.9,2280.8,20.489318]
[1625477336842,3.20527,2280.9,2280.8,20.489318]
[1625477336943,3.20527,2280.9,2280.8,4.47257]
[1625477339150,2.20527,2280.9,2280.8,4.47257]
[1625477340454,3.20527,2280.9,2280.8,4.47257]
[1625477340551,2.20527,2280.9,2280.8,4.47257]
[1625477342715,2.20527,2280.9,2280.8,2.20527]
[1625477342970,56.15307,2280.9,2280.8,2.20527]
[1625477344625,57.15307,2280.9,2280.8,2.20527]
[1625477347689,3.20527,2280.9,2280.8,2.20527]
[1625477348289,48.71277,2280.9,2280.8,2.20527]
[1625477348541,3.20527,2280.9,2280.8,2.20527]
[1625477349094,45.27167,2280.9,2280.8,2.20527]
[1625477351557,3.20527,2280.9,2280.8,2.20527]
[1625477352350,51.13957,2280.9,2280.8,2.20527]
[1625477354910,3.20527,2280.9,2280.8,2.20527]
[1625477355012,3.20527,2280.9,2280.8,5.65767]
[1625477360527,3.20527,2280.9,2280.8,3.4524]
[1625477360629,3.20527,2280.9,2280.6,2.20527]
[1625477360732,5.02044537,2280.9,2280.6,2.20527]
[1625477361032,5.02044537,2280.9,2280.6,0.73577]
[1625477361132,1.29666851,2280.7,2280.6,0.73577]
[1625477361240,4.90536851,2280.7,2280.6,0.73577]
[1625477361638,7.11063851,2280.7,2280.3,2.20527]
[1625477362190,50.0534,2280.4,2280.3,2.20527]
[1625477362291,51.0534,2280.4,2280.3,2.20527]
[1625477362799,1.0,2280.4,2280.3,2.20527]
[1625477363649,3.20527,2280.4,2280.3,2.20527]
[1625477364553,3.20527,2280.4,2279.8,1.27297567]
[1625477365202,3.20527,2280.4,2279.9,16.014939]
[1625477365651,2.20527,2280.0,2279.9,18.220209]
[1625477368875,2.20527,2280.0,2279.9,19.49493132]
[1625477370428,2.20527,2280.0,2279.9,18.220209]
[1625477371632,2.20527,2280.0,2279.9,63.892409]
[1625477372436,2.20527,2280.0,2279.9,18.220209]
[1625477373240,3.20527,2280.0,2279.9,18.220209]
[1625477373590,2.20527,2280.0,2279.9,18.220209]
[1625477376057,2.20527,2280.0,2279.9,71.610309]
[1625477376656,2.20527,2280.0,2279.9,18.220209]
[1625477376857,3.20527,2280.0,2279.9,18.220209]
[1625477377208,2.20527,2280.0,2279.9,64.701709]
[1625477377562,2.20527,2280.0,2279.9,18.220209]
[1625477377659,3.20527,2280.0,2279.9,18.220209]
[1625477378209,55.71737,2280.0,2279.9,18.220209]
[1625477378310,3.20527,2280.0,2279.9,18.220209]
[1625477379363,2.20527,2280.0,2279.9,18.220209]
[1625477379465,2.20527,2280.0,2279.9,66.685009]
[1625477379964,2.20527,2280.4,2279.9,68.46931987]
[1625477380514,2.20527,2280.4,2280.0,1.27441471]
[1625477380915,2.20527,2280.4,2280.1,15.858365]
[1625477381779,4.41054,2280.4,2280.2,2.20527]
[1625477384285,4.41054,2280.4,2280.2,48.77827]
[1625477384585,4.41054,2280.4,2280.2,2.20527]
[1625477393550,4.41054,2280.4,2280.2,46.82827]
[1625477394603,2.20527,2280.4,2280.2,46.82827]
[1625477395011,2.20527,2280.4,2280.3,15.840232]
[1625477395411,2.20527,2280.4,2280.3,18.38285075]
[1625477395811,2.20527,2280.4,2280.3,15.840232]
[1625477395912,2.20527,2280.7,2280.3,18.045502]
[1625477396165,2.20527,2280.7,2280.6,1.7790766]
[1625477396265,2.20527,2280.7,2280.6,5.3235766]
[1625477396463,2.20527,2280.7,2280.6,54.2077766]
[1625477396563,2.20527,2280.7,2280.6,69.9894186]
[1625477397880,2.20527,2280.7,2280.6,72.1946886]
[1625477400091,2.20527,2280.7,2280.6,71.6857294]
[1625477401542,2.20527,2280.7,2280.6,22.8015294]
[1625477404199,2.20527,2280.7,2280.6,65.6282294]
[1625477404501,2.20527,2280.7,2280.6,22.8015294]
[1625477405053,2.20527,2280.7,2280.6,65.6282294]
[1625477405150,2.20527,2280.7,2280.6,22.8015294]
[1625477405309,2.20527,2280.7,2280.6,21.531412]
[1625477405654,2.20527,2280.7,2280.6,5.74977]
[1625477405752,2.20527,2280.7,2280.6,2.20527]
[1625477405959,3.20527,2280.7,2280.6,2.20527]
[1625477406261,2.20527,2280.7,2280.6,2.20527]
[1625477406462,3.20527,2280.7,2280.4,1.26868264]
[1625477406559,7.30997,2280.7,2279.7,0.07883291]
[1625477406659,7.30997,2280.7,2280.1,2.53566304]
[1625477406769,5.0,2280.6,2279.4,3.83315899]
[1625477406862,9.0,2280.5,2279.4,2.51615899]
[1625477407062,50.3048,2279.5,2279.2,6.3391576]
[1625477407162,3.8853,2279.4,2279.0,7.61209583]
[1625477407263,8.8853,2279.4,2279.0,3.98529583]
[1625477407363,8.8853,2279.4,2279.0,2.32679583]
[1625477407464,1.30153314,2279.3,2278.5,10.14265216]
[1625477407563,1.0,2279.2,2278.5,10.14265216]
[1625477407679,1.0,2279.2,2278.5,9.91345216]
[1625477407766,1.0,2279.2,2278.5,7.71055216]
[1625477407865,1.0,2279.2,2278.3,11.41814375]
[1625477407966,4.41054,2278.6,2278.3,11.37614375]
[1625477408069,1.0,2278.5,2278.3,11.37614375]
[1625477408167,1.0,2278.5,2277.9,8.0]
[1625477409520,1.0,2278.5,2278.0,16.037224]
[1625477409921,1.0,2278.5,2278.1,2.20527]
[1625477410071,1.0,2278.5,2278.0,16.037224]
[1625477410273,1.0,2278.5,2277.9,8.0]
[1625477410630,39.4227,2278.0,2277.9,8.0]
[1625477410731,40.4227,2278.0,2277.9,8.0]
[1625477411943,5.41054,2278.0,2277.9,8.0]
[1625477412546,4.41054,2278.0,2277.9,8.0]
[1625477412947,1.0,2278.7,2277.9,23.862493]
[1625477413047,1.0,2278.7,2277.9,26.733593]
[1625477413347,1.0,2278.7,2277.9,10.8711]
[1625477413999,4.41054,2278.0,2277.9,10.8711]
[1625477414101,4.41054,2278.0,2277.9,8.0]